fUSD/lending_fUSD_20240628
["ID","MTS","AMOUNT","RATE_DAILY","PERIOD"]
[330571692,1719581472820,-589.69,0.00021972,3]
[330571693,1719581472830,-982.63,0.00021972,3]
[330571694,1719581472840,-500.0,0.00021972,3]
[330571695,1719581472849,-500.0,0.00021972,3]
[330571696,1719581472858,-500.0,0.00021972,3]
[330571697,1719581472868,-500.0,0.00021972,3]
[330571698,1719581472878,-500.0,0.00021972,3]
[330571699,1719581472887,-500.0,0.00021972,3]
[330571700,1719581472896,-500.0,0.00021972,3]
[330571701,1719581472906,-947.64,0.00021972,3]
[330571702,1719581472915,-500.0,0.00021972,3]
[330571703,1719581472925,-1023.07,0.00021972,3]
[330571704,1719581472934,-500.0,0.00021972,3]
[330571705,1719581472943,-500.0,0.00021972,3]
[330571706,1719581472953,-1003.72,0.00021972,3]
[330571707,1719581472962,-2689.38,0.00021972,3]
[330571708,1719581472972,-640.9,0.00021972,3]
[330571709,1719581472981,-158.66938367,0.00021972,3]
[330571710,1719581472991,-500.0,0.00021972,3]
[330571711,1719581473000,-500.0,0.00021972,3]
[330571712,1719581473009,-902.32,0.00021972,3]
[330571713,1719581473019,-500.0,0.00021972,3]
[330571714,1719581473028,-2932.71,0.00021972,3]
[330571715,1719581473038,-500.0,0.00021972,3]
[330571716,1719581473047,-500.0,0.00021972,3]
[330571717,1719581473059,-500.0,0.00021972,3]
[330571718,1719581473069,-500.0,0.00021972,3]
[330571719,1719581473080,-1128.53,0.00021972,3]
[330571720,1719581473094,-500.0,0.00021972,3]
[330571721,1719581473105,-500.0,0.00021972,3]
[330571722,1719581473117,-939.79,0.00021972,3]
[330571723,1719581473127,-500.0,0.00021972,3]
[330571724,1719581473136,-500.0,0.00021972,3]
[330571725,1719581473146,-500.0,0.00021972,3]
[330571726,1719581473156,-841.33,0.00021972,3]
[330571727,1719581473165,-1023.86,0.00021972,3]
[330571728,1719581473175,-500.0,0.00021972,3]
[330571729,1719581473184,-500.0,0.00021972,3]
[330571730,1719581473194,-500.0,0.00021972,3]
[330571731,1719581473204,-2025.77,0.00021972,3]
[330571732,1719581473214,-500.0,0.00021972,3]
[330571733,1719581473568,-500.0,0.00021972,3]
[330571734,1719581473599,-221.69274405,0.00021972,3]
[330571735,1719581473609,-1081.13,0.00021972,3]
[330571736,1719581473618,-500.0,0.00021972,3]
[330571737,1719581473627,-500.0,0.00021972,3]
[330571738,1719581473637,-2534.2,0.00021972,3]
[330571739,1719581473646,-500.0,0.00021972,3]
[330571740,1719581473656,-545.92,0.00021972,3]
[330571741,1719581473665,-677.91,0.00021972,3]
[330571742,1719581473675,-594.76,0.00021972,3]
[330571743,1719581473684,-983.37,0.00021972,3]
[330571744,1719581473694,-500.0,0.00021972,3]
[330571745,1719581473703,-500.0,0.00021972,3]
[330571746,1719581473713,-1660.71,0.00021972,3]
[330571747,1719581473722,-500.0,0.00021972,3]
[330571748,1719581473731,-1312.32,0.00021972,3]
[330571749,1719581473741,-1407.01,0.00021972,3]
[330571750,1719581473750,-500.0,0.00021972,3]
[330571751,1719581473760,-500.0,0.00021972,3]
[330571752,1719581473770,-500.0,0.00021972,3]
[330571753,1719581473780,-558.19,0.00021972,3]
[330571754,1719581473790,-500.0,0.00021972,3]
[330571755,1719581473802,-500.0,0.00021972,3]
[330571756,1719581473811,-569.28,0.00021972,3]
[330571757,1719581473820,-1230.66,0.00021972,3]
[330571758,1719581473830,-1222.11,0.00021972,3]
[330571759,1719581473839,-1083.65,0.00021972,3]
[330571760,1719581473848,-500.0,0.00021972,3]
[330571761,1719581473857,-680.97,0.00021972,3]
[330571762,1719581473867,-806.01,0.00021972,3]
[330571763,1719581473877,-2241.04,0.00021972,3]
[330571764,1719581473886,-500.0,0.00021972,3]
[330571765,1719581473896,-500.0,0.00021972,3]
[330571766,1719581473906,-500.0,0.00021972,3]
[330571767,1719581473917,-1764.98,0.00021972,3]
[330571768,1719581473926,-2272.28,0.00021972,3]
[330571769,1719581473936,-500.0,0.00021972,3]
[330571770,1719581473946,-500.0,0.00021972,3]
[330571771,1719581473956,-2235.87,0.00021972,3]
[330571772,1719581473965,-500.0,0.00021972,3]
[330571773,1719581473975,-500.0,0.00021972,3]
[330571774,1719581473984,-500.0,0.00021972,3]
[330571775,1719581473993,-7520.38,0.00021972,3]
[330571776,1719581474002,-500.0,0.00021972,3]
[330571777,1719581474012,-1079.69,0.00021972,3]
[330571778,1719581474021,-730.49,0.00021972,3]
[330571779,1719581474030,-1833.12,0.00021972,3]
[330571780,1719581474040,-800.68,0.00021972,3]
[330571781,1719581474050,-500.0,0.00021972,3]
[330571782,1719581474059,-500.0,0.00021972,3]
[330571783,1719581474069,-625.41,0.00021972,3]
[330571784,1719581474079,-500.0,0.00021972,3]
[330571785,1719581474089,-500.0,0.00021972,3]
[330571786,1719581474100,-1293.07,0.00021972,3]
[330571787,1719581474111,-1611.83,0.00021972,3]
[330571788,1719581474120,-500.0,0.00021972,3]
[330571789,1719581474130,-218.50837295,0.00021972,3]
[330571790,1719581474140,-500.0,0.00021972,3]
[330571791,1719581474150,-1335.03,0.00021972,3]
[330571792,1719581474160,-500.0,0.00021972,3]
[330571793,1719581474170,-500.0,0.00021972,3]
[330571794,1719581474179,-500.0,0.00021972,3]
[330571795,1719581474188,-500.0,0.00021972,3]
[330571796,1719581474198,-2017.8,0.00021972,3]
[330571797,1719581474208,-1169.99,0.00021972,3]
[330571798,1719581474218,-559.77,0.00021972,3]
[330571799,1719581474228,-500.0,0.00021972,3]
[330571800,1719581474238,-794.53,0.00021972,3]
[330571801,1719581474248,-500.0,0.00021972,3]
[330571802,1719581474260,-2287.34,0.00021972,3]
[330571803,1719581474270,-500.0,0.00021972,3]
[330571804,1719581474279,-500.0,0.00021972,3]
[330571805,1719581474288,-598.26,0.00021972,3]
[330571806,1719581474299,-969.34,0.00021972,3]
[330571807,1719581474310,-500.0,0.00021972,3]
[330571808,1719581474320,-848.75,0.00021972,3]
[330571809,1719581474331,-500.0,0.00021972,3]
[330571810,1719581474340,-721.51,0.00021972,3]
[330571811,1719581474350,-1520.14,0.00021972,3]
[330571812,1719581474359,-500.0,0.00021972,3]
[330571813,1719581474369,-250.0,0.00021972,3]
[330571814,1719581474379,-574.54,0.00021972,3]
[330571815,1719581474389,-500.0,0.00021972,3]
[330571816,1719581474399,-753.07,0.00021972,3]
[330571817,1719581474410,-4951.63,0.00021972,3]
[330571818,1719581474422,-1212.49,0.00021972,3]
[330571819,1719581474431,-500.0,0.00021972,3]
[330571820,1719581474441,-2156.22,0.00021972,3]
[330571821,1719581474453,-500.0,0.00021972,3]
[330571822,1719581474463,-2619.06,0.00021972,3]
[330571823,1719581474472,-3115.92,0.00021972,3]
[330571824,1719581474482,-752.65,0.00021972,3]
[330571825,1719581474495,-500.0,0.00021972,3]
[330571826,1719581474506,-500.0,0.00021972,3]
[330571827,1719581474515,-500.0,0.00021972,3]
[330571828,1719581474524,-1938.62,0.00021972,3]
[330571829,1719581474533,-500.0,0.00021972,3]
[330571830,1719581474543,-1558.14,0.00021972,3]
[330571831,1719581474552,-500.0,0.00021972,3]
[330571832,1719581474562,-1783.25,0.00021972,3]
[330571833,1719581474572,-595.43,0.00021972,3]
[330571834,1719581474582,-739.78,0.00021972,3]
[330571835,1719581474591,-500.0,0.00021972,3]
[330571836,1719581474601,-500.0,0.00021972,3]
[330571837,1719581474611,-500.0,0.00021972,3]
[330571838,1719581474620,-500.0,0.00021972,3]
[330571839,1719581474630,-500.0,0.00021972,3]
[330571840,1719581474639,-591.89,0.00021972,3]
[330571841,1719581474649,-565.44,0.00021972,3]
[330571842,1719581474659,-500.0,0.00021972,3]
[330571843,1719581474668,-998.56,0.00021972,3]
[330571844,1719581474677,-500.0,0.00021972,3]
[330571845,1719581474687,-1690.37,0.00021972,3]
[330571846,1719581474696,-500.0,0.00021972,3]
[330571847,1719581474707,-1544.97,0.00021972,3]
[330571848,1719581474717,-500.0,0.00021972,3]
[330571849,1719581474727,-500.0,0.00021972,3]
[330571850,1719581474736,-744.25,0.00021972,3]
[330571851,1719581474746,-1315.66,0.00021972,3]
[330571852,1719581474756,-1759.06,0.00021972,3]
[330571853,1719581474766,-2970.47,0.00021972,3]
[330571854,1719581474776,-500.0,0.00021972,3]
[330571855,1719581474785,-790.85,0.00021972,3]
[330571856,1719581474795,-930.55,0.00021972,3]
[330571857,1719581474806,-627.13460108,0.00021972,3]
[330571858,1719581474815,-500.0,0.00021972,3]
[330571859,1719581474825,-382.22978274,0.00021972,3]
[330571860,1719581474835,-1670.71,0.00021972,3]
[330571861,1719581474845,-1218.88,0.00021972,3]
[330571862,1719581474854,-500.0,0.00021972,3]
[330571863,1719581474864,-1189.97,0.00021972,3]
[330571864,1719581474874,-1119.51,0.00021972,3]
[330571865,1719581474883,-500.0,0.00021972,2]
[330571866,1719581474893,-500.0,0.00021972,3]
[330571867,1719581474903,-2631.32,0.00021972,3]
[330571868,1719581474913,-750.26,0.00021972,3]
[330571869,1719581474923,-1504.46,0.00021972,3]
[330571870,1719581474933,-500.0,0.00021972,3]
[330571871,1719581474942,-500.0,0.00021972,3]
[330571872,1719581474952,-1597.63,0.00021972,3]
[330571873,1719581474962,-731.52,0.00021972,3]
[330571874,1719581474972,-500.0,0.00021972,3]
[330571875,1719581474982,-1879.32,0.00021972,3]
[330571876,1719581474991,-500.0,0.00021972,3]
[330571877,1719581475002,-1301.36,0.00021972,3]
[330571878,1719581475012,-538.76,0.00021972,3]
[330571879,1719581475022,-500.0,0.00021972,3]
[330571880,1719581475032,-554.8,0.00021972,3]
[330571881,1719581475041,-500.0,0.00021972,3]
[330571882,1719581475052,-1143.78,0.00021972,3]
[330571883,1719581475061,-500.0,0.00021972,2]
[330571884,1719581475070,-500.0,0.00021972,3]
[330571885,1719581475080,-500.0,0.00021972,3]
[330571886,1719581475090,-500.0,0.00021972,3]
[330571887,1719581475101,-500.0,0.00021972,3]
[330571888,1719581475112,-500.0,0.00021972,3]
[330571889,1719581475121,-2901.03,0.00021972,3]
[330571890,1719581475131,-1300.34,0.00021972,3]
[330571891,1719581475140,-500.0,0.00021972,3]
[330571892,1719581475150,-500.0,0.00021972,3]
[330571893,1719581475159,-511.8,0.00021972,3]
[330571894,1719581475168,-1548.67,0.00021972,3]
[330571895,1719581475178,-2485.2,0.00021972,3]
[330571896,1719581475187,-500.0,0.00021972,3]
[330571897,1719581475197,-1224.26,0.00021972,3]
[330571898,1719581475207,-531.92,0.00021972,3]
[330571899,1719581475216,-1402.6,0.00021972,3]
[330571900,1719581475226,-500.0,0.00021972,3]
[330571901,1719581475236,-500.0,0.00021972,3]
[330571902,1719581475245,-430.82199353,0.00021972,3]
[330571903,1719581475255,-980.37,0.00021972,3]
[330571904,1719581475264,-3943.37,0.00021972,3]
[330571905,1719581475273,-500.0,0.00021972,3]
[330571906,1719581475283,-342.31362622,0.00021972,3]
[330571907,1719581475292,-199.55897442,0.00021972,3]
[330571908,1719581475303,-500.0,0.00021972,3]
[330571909,1719581475313,-1173.47,0.00021972,3]
[330571910,1719581475324,-500.0,0.00021972,3]
[330571911,1719581475334,-500.0,0.00021972,3]
[330571912,1719581475343,-500.0,0.00021972,3]
[330571913,1719581475352,-2122.78,0.00021972,3]
[330571914,1719581475361,-500.0,0.00021972,3]
[330571915,1719581475371,-700.74,0.00021972,3]
[330571916,1719581475380,-2694.47,0.00021972,3]
[330571917,1719581475389,-500.0,0.00021972,3]
[330571918,1719581475398,-2269.54,0.00021972,3]
[330571919,1719581475413,-1411.57,0.00021972,3]
[330571920,1719581475422,-500.0,0.00021972,3]
[330571921,1719581475433,-1915.65,0.00021972,3]
[330571922,1719581475442,-1443.34,0.00021972,3]
[330571923,1719581475452,-1782.46,0.00021972,3]
[330571924,1719581475462,-500.0,0.00021972,3]
[330571925,1719581475472,-626.04,0.00021972,3]
[330571926,1719581475482,-2259.69,0.00021972,3]
[330571927,1719581475493,-324.77693675,0.00021972,3]
[330571928,1719581475503,-348.02158627,0.00021972,3]
[330571929,1719581475513,-161.01739637,0.00021972,3]
[330571930,1719581475523,-1144.19,0.00021972,3]
[330571931,1719581475532,-500.0,0.00021972,3]
[330571932,1719581475542,-500.0,0.00021972,3]
[330571933,1719581475554,-236.5829102,0.00021972,3]
[330571934,1719581475565,-1933.95,0.00021972,3]
[330571935,1719581475574,-500.0,0.00021972,3]
[330571936,1719581475586,-1200.64,0.00021972,3]
[330571937,1719581475596,-500.0,0.00021972,3]
[330571938,1719581475605,-500.0,0.00021972,3]
[330571939,1719581475615,-2500.0,0.00021972,3]
[330571940,1719581475625,-500.0,0.00021972,3]
[330571941,1719581475634,-500.0,0.00021972,3]
[330571942,1719581475644,-1245.79,0.00021972,3]
[330571943,1719581475654,-3679.52,0.00021972,3]
[330571944,1719581475664,-500.0,0.00021972,3]
[330571945,1719581475674,-500.0,0.00021972,3]
[330571946,1719581475683,-788.2,0.00021972,3]
[330571947,1719581475693,-1930.1,0.00021972,3]
[330571948,1719581475703,-1520.55,0.00021972,3]
[330571949,1719581475712,-500.0,0.00021972,3]
[330571950,1719581475722,-856.29,0.00021972,3]
[330571951,1719581475731,-500.0,0.00021972,3]
[330571952,1719581475742,-174.11791442,0.00021972,3]
[330571953,1719581475752,-1084.78,0.00021972,3]
[330571954,1719581475761,-755.66,0.00021972,3]
[330571955,1719581475771,-500.0,0.00021972,3]
[330571956,1719581475781,-939.08,0.00021972,3]
[330571957,1719581475790,-1156.32,0.00021972,3]
[330571958,1719581475800,-500.0,0.00021972,3]
[330571959,1719581475811,-1484.53,0.00021972,3]
[330571960,1719581475821,-819.59,0.00021972,3]
[330571961,1719581475831,-1281.03,0.00021972,3]
[330571962,1719581475841,-540.93387451,0.00021972,3]
[330571963,1719581475850,-1418.89,0.00021972,3]
[330571964,1719581475860,-500.0,0.00021972,3]
[330571965,1719581475870,-500.0,0.00021972,3]
[330571966,1719581475879,-500.0,0.00021972,3]
[330571967,1719581475889,-1289.19,0.00021972,3]
[330571968,1719581475899,-500.0,0.00021972,3]
[330571969,1719581475908,-1394.68,0.00021972,3]
[330571970,1719581475917,-854.39,0.00021972,3]
[330571971,1719581475927,-500.0,0.00021972,3]
[330571972,1719581475937,-3187.49,0.00021972,3]
[330571973,1719581475946,-1050.74,0.00021972,3]
[330571974,1719581475956,-1773.83,0.00021972,3]
[330571975,1719581475965,-266.80431097,0.00021972,3]
[330571976,1719581476095,-393.07,0.00021972,3]
[330571977,1719581476108,-4015.68,0.00021972,3]
[330571978,1719581476119,-500.0,0.00021972,3]
[330571979,1719581476129,-1182.56,0.00021972,3]
[330571980,1719581476139,-606.34,0.00021972,3]
[330571981,1719581476150,-500.0,0.00021972,3]
[330571982,1719581476160,-1207.66,0.00021972,3]
[330571983,1719581476170,-500.0,0.00021972,3]
[330571984,1719581476180,-11118.41,0.00021972,3]
[330571985,1719581476190,-500.0,0.00021972,3]
[330571986,1719581476199,-1027.22,0.00021972,3]
[330571987,1719581476209,-909.12,0.00021972,3]
[330571988,1719581476218,-2224.85,0.00021972,3]
[330571989,1719581476228,-2109.42,0.00021972,3]
[330571990,1719581476237,-500.0,0.00021972,3]
[330571991,1719581476246,-500.0,0.00021972,3]
[330571992,1719581476256,-500.0,0.00021972,3]
[330571993,1719581476266,-500.0,0.00021972,3]
[330571994,1719581476275,-500.0,0.00021972,3]
[330571995,1719581476285,-1433.86,0.00021972,3]
[330571996,1719581476295,-500.0,0.00021972,3]
[330571997,1719581476308,-500.0,0.00021972,3]
[330571998,1719581476318,-500.0,0.00021972,3]
[330571999,1719581476327,-3373.14,0.00021972,3]
[330572000,1719581476337,-639.12,0.00021972,3]
[330572001,1719581476347,-1039.41,0.00021972,3]
[330572002,1719581476356,-1382.55,0.00021972,3]
[330572003,1719581476365,-525.53,0.00021972,3]
[330572004,1719581476375,-500.0,0.00021972,3]
[330572005,1719581476384,-500.0,0.00021972,3]
[330572006,1719581476393,-1766.72,0.00021972,3]
[330572007,1719581476404,-2429.33,0.00021972,3]
[330572008,1719581476414,-881.88,0.00021972,3]
[330572009,1719581476427,-1305.84,0.00021972,3]
[330572010,1719581476436,-500.0,0.00021972,3]
[330572011,1719581476448,-865.58,0.00021972,3]
[330572012,1719581476459,-1690.78,0.00021972,3]
[330572013,1719581476468,-2610.51,0.00021972,3]
[330572014,1719581476478,-3640.69,0.00021972,3]
[330572015,1719581476487,-500.0,0.00021972,3]
[330572016,1719581476498,-1065.83,0.00021972,3]
[330572017,1719581476508,-500.0,0.00021972,3]
[330572018,1719581476517,-500.0,0.00021972,3]
[330572019,1719581476526,-6031.77,0.00021972,3]
[330572020,1719581476537,-500.0,0.00021972,3]
[330572021,1719581476547,-167.91947799,0.00021972,3]
[330572022,1719581476559,-500.0,0.00021972,3]
[330572023,1719581476569,-927.31,0.00021972,3]
[330572024,1719581476579,-500.0,0.00021972,3]
[330572025,1719581476590,-1027.34,0.00021972,3]
[330572026,1719581476600,-500.0,0.00021972,3]
[330572027,1719581476609,-500.0,0.00021972,3]
[330572028,1719581476618,-629.70387156,0.00021972,3]
[330572029,1719581476629,-992.66,0.00021972,3]
[330572030,1719581476638,-1368.85,0.00021972,3]
[330572031,1719581476649,-500.0,0.00021972,3]
[330572032,1719581476658,-659.44,0.00021972,3]
[330572033,1719581476668,-661.85,0.00021972,3]
[330572034,1719581476678,-2995.16,0.00021972,3]
[330572035,1719581476688,-1213.4,0.00021972,3]
[330572036,1719581476697,-630.31740068,0.00021972,3]
[330572037,1719581476707,-1126.79,0.00021972,3]
[330572038,1719581476716,-2342.86,0.00021972,3]
[330572039,1719581476725,-1404.38,0.00021972,3]
[330572040,1719581476736,-500.0,0.00021972,3]
[330572041,1719581476746,-500.0,0.00021972,3]
[330572042,1719581476755,-2099.81,0.00021972,3]
[330572043,1719581476766,-554.59,0.00021972,3]
[330572044,1719581476775,-500.0,0.00021972,3]
[330572045,1719581476785,-3678.51,0.00021972,3]
[330572046,1719581476795,-1002.11,0.00021972,3]
[330572047,1719581476807,-643.23,0.00021972,3]
[330572048,1719581476816,-5337.73,0.00021972,3]
[330572049,1719581476825,-786.12,0.00021972,3]
[330572050,1719581476834,-500.0,0.00021972,3]
[330572051,1719581476843,-1207.55,0.00021972,3]
[330572052,1719581476853,-845.27,0.00021972,3]
[330572053,1719581476862,-754.57,0.00021972,3]
[330572054,1719581476872,-1386.67,0.00021972,3]
[330572055,1719581476880,-500.0,0.00021972,3]
[330572056,1719581476889,-1014.0,0.00021972,3]
[330572057,1719581476898,-911.43,0.00021972,3]
[330572058,1719581476907,-500.0,0.00021972,3]
[330572059,1719581476918,-3812.46,0.00021972,3]
[330572060,1719581476927,-1466.36,0.00021972,3]
[330572061,1719581476936,-500.0,0.00021972,3]
[330572062,1719581476946,-1058.74,0.00021972,3]
[330572063,1719581476955,-997.7,0.00021972,3]
[330572064,1719581476965,-4068.22,0.00021972,3]
[330572065,1719581476974,-500.0,0.00021972,3]
[330572066,1719581476983,-500.0,0.00021972,3]
[330572067,1719581476993,-1837.07,0.00021972,3]
[330572068,1719581477002,-500.0,0.00021972,3]
[330572069,1719581477012,-500.0,0.00021972,3]
[330572070,1719581477023,-500.0,0.00021972,3]
[330572071,1719581477033,-1046.48,0.00021972,3]
[330572072,1719581477043,-500.0,0.00021972,3]
[330572073,1719581477055,-500.0,0.00021972,3]
[330572074,1719581477065,-500.0,0.00021972,3]
[330572075,1719581477074,-500.0,0.00021972,3]
[330572076,1719581477085,-500.0,0.00021972,3]
[330572077,1719581477095,-500.0,0.00021972,3]
[330572078,1719581477104,-500.0,0.00021972,3]
[330572079,1719581477114,-1790.37,0.00021972,3]
[330572080,1719581477124,-500.0,0.00021972,3]
[330572081,1719581477134,-1186.46,0.00021972,3]
[330572082,1719581477144,-500.0,0.00021972,3]
[330572083,1719581477154,-2000.64,0.00021972,3]
[330572084,1719581477164,-500.0,0.00021972,3]
[330572085,1719581477174,-719.3,0.00021972,3]
[330572086,1719581477184,-3251.06,0.00021972,3]
[330572087,1719581477194,-988.84,0.00021972,3]
[330572088,1719581477203,-638.89,0.00021972,3]
[330572089,1719581477213,-500.0,0.00021972,3]
[330572090,1719581477223,-500.0,0.00021972,3]
[330572091,1719581477232,-709.49,0.00021972,3]
[330572092,1719581477242,-500.0,0.00021972,3]
[330572093,1719581477251,-5851.89,0.00021972,3]
[330572094,1719581477260,-6549.41,0.00021972,3]
[330572095,1719581477271,-1243.35,0.00021972,3]
[330572096,1719581477280,-1121.54,0.00021972,3]
[330572097,1719581477290,-3127.02,0.00021972,3]
[330572098,1719581477299,-500.0,0.00021972,3]
[330572099,1719581477312,-2930.95,0.00021972,3]
[330572100,1719581477320,-500.0,0.00021972,3]
[330572101,1719581477329,-500.0,0.00021972,3]
[330572102,1719581477338,-851.08,0.00021972,3]
[330572103,1719581477348,-776.56,0.00021972,3]
[330572104,1719581477357,-1849.31,0.00021972,3]
[330572105,1719581477367,-395.65,0.00021972,3]
[330572106,1719581477377,-2636.86,0.00021972,3]
[330572107,1719581477386,-500.0,0.00021972,3]
[330572108,1719581477396,-500.0,0.00021972,3]
[330572109,1719581477409,-722.53,0.00021972,3]
[330572110,1719581477420,-1462.6,0.00021972,3]
[330572111,1719581477430,-500.0,0.00021972,3]
[330572112,1719581477439,-500.0,0.00021972,3]
[330572113,1719581477449,-1920.81,0.00021972,3]
[330572114,1719581477460,-1534.46,0.00021972,3]
[330572115,1719581477470,-1966.76,0.00021972,3]
[330572116,1719581477479,-1645.58,0.00021972,3]
[330572117,1719581477490,-3455.8,0.00021972,3]
[330572118,1719581477499,-1485.53,0.00021972,3]
[330572119,1719581477509,-2653.03,0.00021972,3]
[330572120,1719581477520,-500.0,0.00021972,3]
[330572121,1719581477529,-1022.75,0.00021972,3]
[330572122,1719581477538,-500.0,0.00021972,3]
[330572123,1719581477548,-1070.81454078,0.00021972,2]
[330572124,1719581477559,-500.0,0.00021972,3]
[330572125,1719581477569,-1315.88,0.00021972,3]
[330572126,1719581477579,-500.0,0.00021972,3]
[330572127,1719581477589,-500.0,0.00021972,3]
[330572128,1719581477598,-1627.89,0.00021972,3]
[330572129,1719581477608,-780.56,0.00021972,3]
[330572130,1719581477617,-4218.02,0.00021972,3]
[330572131,1719581477627,-500.0,0.00021972,3]
[330572132,1719581477636,-500.0,0.00021972,3]
[330572133,1719581477646,-500.0,0.00021972,3]
[330572134,1719581477656,-1377.58,0.00021972,3]
[330572135,1719581477665,-500.0,0.00021972,3]
[330572136,1719581477675,-500.0,0.00021972,3]
[330572137,1719581477684,-500.0,0.00021972,3]
[330572138,1719581477694,-674.62,0.00021972,3]
[330572139,1719581477704,-514.37,0.00021972,3]
[330572140,1719581477713,-500.0,0.00021972,3]
[330572141,1719581477723,-2978.97,0.00021972,3]
[330572142,1719581477734,-7525.21,0.00021972,3]
[330572143,1719581477743,-954.41,0.00021972,3]
[330572144,1719581477753,-1511.98,0.00021972,3]
[330572145,1719581477763,-763.25,0.00021972,3]
[330572146,1719581477772,-500.0,0.00021972,3]
[330572147,1719581477782,-810.94,0.00021972,3]
[330572148,1719581477794,-500.0,0.00021972,3]
[330572149,1719581477805,-815.5,0.00021972,3]
[330572150,1719581477815,-500.0,0.00021972,3]
[330572151,1719581477824,-1485.98,0.00021972,3]
[330572152,1719581477834,-500.0,0.00021972,3]
[330572153,1719581477843,-500.0,0.00021972,3]
[330572154,1719581477853,-500.0,0.00021972,3]
[330572155,1719581477862,-605.51324643,0.00021972,3]
[330572156,1719581477871,-500.0,0.00021972,3]
[330572157,1719581477881,-1836.96,0.00021972,3]
[330572158,1719581477890,-2470.1,0.00021972,3]
[330572159,1719581477899,-1386.57,0.00021972,3]
[330572160,1719581477909,-572.01,0.00021972,3]
[330572161,1719581477918,-517.73,0.00021972,3]
[330572162,1719581477927,-856.65,0.00021972,3]
[330572163,1719581477936,-1584.05,0.00021972,3]
[330572164,1719581477946,-1512.1,0.00021972,3]
[330572165,1719581477955,-758.53,0.00021972,3]
[330572166,1719581477965,-1076.21,0.00021972,3]
[330572167,1719581477974,-1219.7,0.00021972,3]
[330572168,1719581477984,-898.71,0.00021972,3]
[330572169,1719581477993,-692.9,0.00021972,3]
[330572170,1719581478002,-500.0,0.00021972,3]
[330572171,1719581478011,-4004.99,0.00021972,3]
[330572172,1719581478020,-1336.68,0.00021972,3]
[330572173,1719581478030,-6874.99,0.00021972,3]
[330572174,1719581478039,-184.70059806,0.00021972,3]
[330572175,1719581478048,-897.44,0.00021972,3]
[330572176,1719581478060,-798.07,0.00021972,3]
[330572177,1719581478069,-500.0,0.00021972,3]
[330572178,1719581478079,-500.0,0.00021972,3]
[330572179,1719581478089,-500.0,0.00021972,3]
[330572180,1719581478098,-500.0,0.00021972,3]
[330572181,1719581478108,-1201.59,0.00021972,3]
[330572182,1719581478118,-1469.29,0.00021972,3]
[330572183,1719581478127,-500.0,0.00021972,3]
[330572184,1719581478138,-2287.08,0.00021972,3]
[330572185,1719581478147,-500.0,0.00021972,3]
[330572186,1719581478157,-1323.12,0.00021972,3]
[330572187,1719581478166,-660.68,0.00021972,3]
[330572188,1719581478175,-511.43,0.00021972,3]
[330572189,1719581478185,-919.51,0.00021972,3]
[330572190,1719581478194,-1100.39,0.00021972,3]
[330572191,1719581478203,-578.27,0.00021972,3]